Workbook

Sheet Лист1
A1: Школа | C1: МАОУ-СОШ № 31 | F1: Согласовано | G1: должность | H1: директор МАОУ-СОШ №31
A2: Типовое примерное меню приготавливаемых блюд | G2: фамилия | H2: О.В.Рожкова
A3: Возрастная категория | E3: 7-11 лет | G3: дата | J3: 2025
H4: день | I4: месяц | J4: год
A5: Неделя | B5: День недели | C5: Прием пищи | D5: Раздел меню | E5: Блюда | F5: Вес блюда, г | G5: Белки | H5: Жиры | I5: Углеводы | J5: Калорийность | K5: № рецептуры | L5: Цена
A6: 1 | B6: 1 | C6: Завтрак | D6: Закуска | E6: Бутерброд с сыром (батон) | F6: 110/25 | G6: 4,46 | H6: 3.34 | I6: 13.06 | J6: 100.39 | K6: 3 (2004) | L6: 15.79
D7: гор.блюдо | E7: Филе цыплят тушенное в сметанном соусе | F7: 50/50 | G7: 15,02 | H7: 9.73 | I7: 6.88 | J7: 171.1 | K7: 493 (2004) | L7: 59.72
D8: гор.блюдо | E8: Рис припущенный с куркумой | F8: 150 | G8: 3,64 | H8: 4.82 | I8: 39.63 | J8: 216.96 | K8: 466 (1996) | L8: 19.46
D9: напиток | E9: Напиток с витаминами «Витошка» | F9: 200 | G9: 0,00 | H9: 0 | I9: 18.97 | J9: 70.76 | K9: ТТК | L9: 10.07
D10: хлеб | E10: Хлеб ржаной | F10: 1029 | G10: 0,24 | H10: 8.17 | I10: 8.17 | J10: 37.9 | K10: пром | L10: 1.44
D11: хлеб бел. | E11: Хлеб пшеничный витаминизированный | F11: 30 | G11: 2,23 | H11: 0.24 | I11: 15.23 | J11: 72.09 | K11: пром | L11: 2.16
D14: итого | G14: 26,66 | H14: 18.37 | I14: 101.94 | J14: 669.21 | L14: =SUM(L6:L13) -> 108.64
A15: =A6 -> 1 | B15: =B6 -> 1 | C15: Обед
D16: 1 блюдо | E16: Суп картофельный с рыбой (филе минтая) | F16: 250/20 | G16: 3,30 | H16: 3.16 | I16: 18.87 | J16: 114.57 | K16: 131 (1996) | L16: 34.44
D17: 2 блюдо | E17: Филе цыплят тушеное в сметанном соусе | F17: 60/50 | G17: 10/84 | H17: 10.07 | I17: 5.35 | J17: 156.44 | K17: 493 (2004) | L17: 69.35
D18: гарнир | E18: Сложный гарнир (рис припущенный с куркумой, фасоль, отварная с маслом сливочным) | F18: 100/50 | G18: 8,53 | H18: 5.56 | I18: 32.75 | J18: 300.25 | K18: ТТК | L18: 32.03
D19: напиток | E19: Напиток из брусники | F19: 200 | G19: 2,70 | H19: 2.51 | I19: 39.25 | J19: 163.66 | K19: ТТК | L19: 22.81
D20: хлеб бел. | E20: Хлеб пшеничный витаминизированный | F20: 302,23 | G20: 0,24 | H20: 15.23 | I20: 72.09 | J20: 84.11 | K20: пром | L20: 2.88
D21: хлеб черн. | E21: Хлеб ржаной | F21: 20 | G21: 1.29 | H21: 0.24 | I21: 8.17 | J21: 37.9 | K21: пром | L21: 1.44
D23: итого | G23: 27,94 | H23: 24.39 | I23: 116.57 | J23: 852.77 | L23: =SUM(L15:L22) -> 162.95
A24: =A6 -> 1 | B24: =B6 -> 1 | C24: Итого за день: | F24: =F14+F23 -> 0 | G24: =G14+G23 -> 54.6 | H24: =H14+H23 -> 42.76 | I24: =I14+I23 -> 218.51 | J24: =J14+J23 -> 1521.98 | L24: =L14+L23 -> 271.59
A25: 1 | B25: 2 | C25: Завтрак | D25: закуска | E25: Бутерброд с маслом сливочным (батон) | F25: 10/25 | G25: 1,94 | H25: 8.82 | I25: 13.14 | J25: 139.29 | K25: 3 (2004) | L25: 22.86
D26: гор.блюдо | E26: Каша кукурузная молочная вязкая с маслом сливочным | F26: 200/5 | G26: 7,29 | H26: 6.98 | I26: 46 | J26: 267.02 | K26: 257 (1996) | L26: 33.09
E27: Творожок «наша маша» классический | F27: 100 | G27: 9,00 | H27: 5 | I27: 4 | J27: 96.2 | K27: пром. | L27: 36.96
D28: напиток | E28: Кофейный напиток с молоком | F28: 200 | G28: 1,95 | H28: 1.45 | I28: 19.52 | J28: 95.17 | K28: 692 (2004) | L28: 12.85
D29: хлеб бел. | E29: Хлеб пшеничный витаминизированный | F29: 30 | G29: 2,23 | H29: 0.24 | I29: 15.23 | J29: 72.09 | K29: пром | L29: 1.44
D30: хлеб.черн. | E30: Хлеб ржаной | F30: 20 | G30: 1,29 | H30: 0.24 | I30: 8.17 | J30: 37.9 | K30: пром. | L30: 1.44
D34: итого | G34: 23,70 | H34: 22.73 | I34: 106.06 | J34: 707.67 | L34: =SUM(L25:L33) -> 108.64
A35: =A25 -> 1 | B35: =B25 -> 2 | C35: Обед | D35: закуска
D36: 1 блюдо | E36: Борщ с морской капустой, картофелем, сметаной | F36: 250/10 | G36: 1,97 | H36: 7.09 | I36: 14.26 | J36: 123.96 | K36: ФБУН ЕМНЦ ПОЗРПП Роспотребнадзор по Свердловской области 2018 год | L36: 17.01
D37: 2 блюдо | E37: Гуляш из говядины | F37: 50/50 | G37: 15,63 | H37: 12.15 | I37: 4.01 | J37: 187.31 | K37: 401(1996) | L37: 106.04
D38: гарнир | E38: Макароные изделия отварные | F38: 150 | G38: 5,51 | H38: 4.89 | I38: 38.65 | J38: 212.18 | K38: 469 (1996) | L38: 12.29
D39: напиток | E39: Напиток вишневый | F39: 200 | G39: 0,47 | H39: 2.61 | I39: 20.29 | J39: 88.24 | K39: ТТК | L39: 24.01
D40: хлеб.бел. | E40: Хлеб пшеничный витаминизированный | F40: 30 | G40: 2,23 | H40: 0.24 | I40: 15.23 | J40: 72.09 | K40: пром | L40: 2.16
D41: хлеб черн. | E41: Хлеб ржаной | F41: 20 | G41: 1.29 | H41: 0.24 | I41: 8.17 | J41: 37.9 | K41: пром | L41: 1.44
D43: итого | G43: 27,11 | H43: 27.21 | I43: 100.61 | J43: 721.69 | L43: =SUM(L36:L42) -> 162.95
A44: =A25 -> 1 | B44: =B25 -> 2 | C44: Итого за день: | F44: =F34+F43 -> 0 | G44: =G34+G43 -> 50.81 | H44: =H34+H43 -> 49.94 | I44: =I34+I43 -> 206.67 | J44: =J34+J43 -> 1429.36 | L44: =L34+L43 -> 271.59
A45: 1 | B45: 3 | C45: Завтрак | D45: Закуска | E45: Огурчик пикантный | F45: 20/2 | G45: 0,16 | H45: 1.98 | I45: 0.69 | J45: 20.74 | K45: ТТК | L45: 10.05
D46: гор.блюдо | E46: Рыба, запеченая в омлете (филе минтая) | F46: 90 | G46: 13,97 | H46: 7.46 | I46: 8.63 | J46: 154.38 | K46: 33 (2001) | L46: 61.01
D47: гарнир | E47: Пюре картофельное (гарнир) | F47: 150 | G47: 3,21 | H47: 5.33 | I47: 23.4 | J47: 253.04 | K47: 472 (1996) | L47: 29.23
D48: напиток | E48: Чай с лимоном | F48: 200/15/7 | G48: 0,26 | H48: 0.06 | I48: 15.16 | J48: 59.88 | K48: 686(2004) | L48: 4.75
D49: хлеб бел. | E49: Хлеб пшеничный витаминизированный | F49: 30 | G49: 2,23 | H49: 0.24 | I49: 15.23 | J49: 72.09 | K49: пром | L49: 2.16
D50: хлеб.черн. | E50: Хлеб ржаной | F50: 20 | G50: 1,29 | H50: 0.24 | I50: 8.17 | J50: 37.9 | K50: пром. | L50: 1.44
D53: итого | G53: 21,13 | H53: 15.29 | I53: 71.28 | J53: 498.04 | L53: =SUM(L45:L52) -> 108.64
A54: =A45 -> 1 | B54: =B45 -> 3 | C54: Обед
D55: 1 блюдо | E55: Суп картофельный с макаронными изделиями на бульоне с курой | F55: 250 | G55: 5,10 | H55: 6.18 | I55: 14.26 | J55: 128.31 | K55: 110(1994) | L55: 25.46
D56: 2 блюдо | E56: Рыба запеченая под молочным соусом с сыром (филе минтая) | F56: 90 | G56: 13,72 | H56: 9.72 | I56: 9.07 | J56: 175.21 | K56: 320 (1996) | L56: 80.2
D57: гарнир | E57: Пюре картофельное (гарнир) | F57: 150 | G57: 3,21 | H57: 7.33 | I57: 23.4 | J57: 153.04 | K57: 472 (1996) | L57: 29.23
D58: гарнир | E58: Горошек зеленый консервированный отварной (дополнительный гарнир) | F58: 30 | G58: 0,43 | H58: 3.91 | I58: 3.94 | J58: 26.49 | K58: 468 (1996) | L58: 15.06
D59: напиток | E59: Компот из кураги | F59: 200 | G59: 1,02 | H59: 0.06 | I59: 28.19 | J59: 106.45 | K59: 588 (1996) | L59: 9.4
D60: хлеб бел. | E60: Хлеб пшеничный витаминизированный | F60: 30 | G60: 2.23 | H60: 0.24 | I60: 15.23 | J60: 72.09 | K60: пром | L60: 2.16
D61: хлеб черн. | E61: Хлеб ржаной | F61: 20 | G61: 1.29 | H61: 0.24 | I61: 8.17 | J61: 37.9 | K61: пром | L61: 1.44
D63: итого | G63: 28,64 | H63: 23.5 | I63: 107.62 | J63: 707.17 | L63: =SUM(L55:L62) -> 162.95
A64: =A45 -> 1 | B64: =B45 -> 3 | C64: Итого за день: | F64: =F53+F63 -> 0 | G64: =G53+G63 -> 49.77 | H64: =H53+H63 -> 38.79 | I64: =I53+I63 -> 178.9 | J64: =J53+J63 -> 1205.21 | L64: =L53+L63 -> 271.59
A65: 1 | B65: 4 | C65: Завтрак | D65: гор.блюдо | E65: Каша «Янтарная» (из пшена с яблоками) | F65: 250 | G65: 10,31 | H65: 14.97 | I65: 51.09 | J65: 376.91 | K65: 261 (1996) | L65: 59.94
D66: гор.блюдо | E66: Блины классические со сгущенным молоком | F66: 50/10 | G66: 5,02 | H66: 7.2 | I66: 5.44 | J66: 105.66 | K66: ТТК | L66: 21.87
D67: напиток | E67: Какао с молоком | F67: 200 | G67: 3,94 | H67: 3.16 | I67: 21.39 | J67: 123.86 | K67: 642 (1996) | L67: 25.39
D68: хлеб бел. | E68: Хлеб пшеничный витаминизированный | F68: 20 | G68: 1,49 | H68: 0.16 | I68: 10.15 | J68: 48.06 | K68: пром | L68: 1.44
D71: итого | G71: 20,76 | H71: 25.49 | I71: 88.07 | J71: 654.49 | L71: =L65+L66+L67+L68 -> 108.64
A72: =A65 -> 1 | B72: =B65 -> 4 | C72: Обед
D73: 1 блюдо | E73: Щи из свежей капусты с картофелем, сметаной | F73: 250/10 | G73: 5,01 | H73: 9.05 | I73: 11.08 | J73: 120.46 | K73: 120 (1996) | L73: 25.93
D74: 2 блюдо | E74: Жаркое по домашнему | F74: 50/200 | G74: 14,42 | H74: 12.61 | I74: 37.83 | J74: 361.35 | K74: 394 (1996) | L74: 126.12
D75: напиток | E75: Напиток из плодов шиповника | F75: 200 | G75: 0,31 | H75: 0.14 | I75: 26.07 | J75: 99.27 | K75: 705 (2004) | L75: 5.86
D76: хлеб бел. | E76: Хлеб пшеничный витаминизированный | F76: 40 | G76: 2,97 | H76: 0.32 | I76: 20.3 | J76: 96.12 | K76: пром | L76: 2.88
D77: хлеб черн. | E77: Хлеб ржаной | F77: 20 | G77: 1.29 | H77: 0.24 | I77: 8.17 | J77: 37.9 | K77: пром | L77: 2.16
D79: итого | G79: 24,00 | H79: 22.36 | I79: 103.45 | J79: 715.1 | L79: =L73+L74+L75+L76+L77 -> 162.95
A80: =A65 -> 1 | B80: =B65 -> 4 | C80: Итого за день: | F80: =F71+F79 -> 0 | G80: =G71+G79 -> 44.76 | H80: =H71+H79 -> 47.85 | I80: =I71+I79 -> 191.52 | J80: =J71+J79 -> 1369.59 | L80: =L71+L79 -> 271.59
A81: 1 | B81: 5 | C81: Завтрак | D81: закуска | E81: Помидор пикантный | F81: 30/3 | G81: 0,32 | H81: 3 | I81: 1.53 | J81: 34.05 | K81: ТТК | L81: 9.43
D82: гор.блюдо | E82: Фрикадельки из курицы с маслом сливочным | F82: 70 | G82: 9,79 | H82: 6.07 | I82: 6.32 | J82: 116.47 | K82: 63 (2003) | L82: 50.59
D83: гарнир | E83: Макарон с сыром | F83: 150 | G83: 9,06 | H83: 11.62 | I83: 31.54 | J83: 267.5 | K83: 274 (1996) | L83: 40.77
D84: хлеб бел. | E84: Чай с лимоном | F84: 200/15/7 | G84: 0,26 | H84: 0.06 | I84: 15.16 | J84: 59.88 | K84: 686 (2004) | L84: 4.84
D85: хлеб черн. | E85: Хлеб пшеничный витаминизированный | F85: 30 | G85: 2,23 | H85: 0.24 | I85: 15.23 | J85: 72.09 | K85: пром. | L85: 1.57
D86: хлеб черн. | E86: Хлеб ржаной | F86: 20 | G86: 1.29 | H86: 0.24 | I86: 8.17 | J86: 37.9 | K86: пром | L86: 1.44
D90: итого | G90: 22,95 | H90: 21.23 | I90: 77.95 | J90: 587.9 | L90: =L81+L82+L83+L84+L85+L86 -> 108.64
A91: =A81 -> 1 | B91: =B81 -> 5 | C91: Обед
D92: 1 блюдо | E92: Рассольник ленинградский со сметаной | F92: 250/10 | G92: 2,38 | H92: 5.8 | I92: 19.47 | J92: 129.99 | K92: 129/3(1996) | L92: 26.14
D93: 2 блюдо | E93: Фрикадельки из курицы с маслом сливочным | F93: 90 | G93: 20,33 | H93: 8.3 | I93: 5.29 | J93: 176.48 | K93: 63 (2003) | L93: 66.58
D94: гарнир | E94: Макароны с сыром | F94: 150 | G94: 5,06 | H94: 9.62 | I94: 35.54 | J94: 267.5 | K94: 274 (1996) | L94: 42.43
D95: напиток | E95: Напиток вишневый | F95: 200 | G95: 0,47 | H95: 2.61 | I95: 17.29 | J95: 88.24 | K95: ТТК | L95: 24.01
D96: хлеб бел. | E96: Хлеб пшеничный витаминизированный | F96: 30 | G96: 2,23 | H96: 0.24 | I96: 15.23 | J96: 72.09 | K96: пром | L96: 2.35
D97: хлеб черн. | E97: Хлеб ржаной | F97: 20 | G97: 1,29 | H97: 0.24 | I97: 8.17 | J97: 37.9 | K97: пром | L97: 1.44
D100: итого | G100: 26,67 | H100: 26.71 | I100: 102.99 | J100: 772.21 | L100: =L92+L93+L94+L95+L96+L97 -> 162.95
A101: =A81 -> 1 | B101: =B81 -> 5 | C101: Итого за день: | F101: =F90+F100 -> 0 | G101: =G90+G100 -> 49.62 | H101: =H90+H100 -> 47.94 | I101: =I90+I100 -> 180.94 | J101: =J90+J100 -> 1360.11 | L101: =L90+L100 -> 271.59
A102: 2 | B102: 6 | C102: Завтрак | D102: Закуска | E102: Бутерброд с сыром (батон) | F102: 10/25 | G102: 4,46 | H102: 3.34 | I102: 13.06 | J102: 100.39 | K102: 3 (2004) | L102: 19.98
D103: гор.блюдо | E103: Палочки рыбные | F103: 60 | G103: 10,09 | H103: 7.66 | I103: 12.47 | J103: 129.32 | K103: ТТК | L103: 51.71
D104: гарнир | E104: Пюре картофельное (гарнир) | F104: 150 | G104: 3,21 | H104: 5.33 | I104: 23.4 | J104: 153.04 | K104: 472 (1996) | L104: 29.23
D105: гор.напиток | E105: Чай с лимоном | F105: 200/15/7 | G105: 0,26 | H105: 0.06 | I105: 15.16 | J105: 59.88 | K105: 686 (2004) | L105: 4.84
D106: хлеб | E106: Хлеб пшеничный витаминизированный | F106: 30 | G106: 2,23 | H106: 0.24 | I106: 15.23 | J106: 72.09 | K106: пром | L106: 1.44
D107: хлеб | E107: Хлеб ржаной | F107: 20 | G107: 1.29 | H107: 0.24 | I107: 8.17 | J107: 37.9 | K107: пром | L107: 1.44
D110: итого | G110: 21,54 | H110: 16.87 | I110: 87.49 | J110: 552.64 | L110: =L102+L103+L104+L105+L106+L107 -> 108.64
A111: =A102 -> 2 | B111: 6 | C111: Обед
D112: 1 блюдо | E112: Щи из свежей капусты с картофелем, сметаной | F112: 250/10 | G112: 5,01 | H112: 9.05 | I112: 11.08 | J112: 120.46 | K112: 120 (1996) | L112: 37.1
D113: 2 блюдо | E113: Палочки рыбные | F113: 90 | G113: 15,14 | H113: 6.99 | I113: 18.7 | J113: 193.98 | K113: ТТК | L113: 53.59
D114: гарнир | E114: Пюре картофельное (гарнир) | F114: 150 | G114: 3,21 | H114: 5.33 | I114: 23.4 | J114: 153.04 | K114: 472 (1996) | L114: 29.23
D115: напиток | E115: Напиток фруктово-ягодный | F115: 200 | G115: 0,22 | H115: 0 | I115: 20.11 | J115: 96.32 | K115: ТТК | L115: 11.06
E116: Выпечка в ассортименте | F116: 50 | G116: 1,26 | H116: 2 | I116: 10.81 | J116: 118.84 | L116: 28.37
D117: хлеб бел. | E117: Хлеб пшеничный витаминизированный | F117: 30 | G117: 2,23 | H117: 0.24 | I117: 15.23 | J117: 72.09 | K117: пром | L117: 2.16
D118: хлеб черн. | E118: Хлеб ржаной | F118: 20 | G118: 1.29 | H118: 0.24 | I118: 8.17 | J118: 37.9 | K118: пром | L118: 1.44
D120: итого | G120: 28,36 | H120: 23.85 | I120: 107.5 | J120: 792.64 | L120: =L112+L113+L114+L115+L116+L117+L118 -> 162.95
A121: =A102 -> 2 | B121: =B102 -> 6 | C121: Итого за день: | F121: =F110+F120 -> 0 | G121: =G110+G120 -> 49.9 | H121: =H110+H120 -> 40.72 | I121: =I110+I120 -> 194.99 | J121: =J110+J120 -> 1345.28 | L121: =L110+L120 -> 271.59
A122: 2 | B122: 7 | C122: Завтрак | L122: 66.12
D123: гор.блюдо | E123: Плов (со свининой) | F123: 200 | G123: 15,59 | H123: 20.43 | I123: 41.2 | J123: 410.56 | K123: 403 (1996) | L123: 4.84
D124: напиток | E124: Чай с лимоном | F124: 200/15/7 | G124: 0,26 | H124: 0.06 | I124: 15.16 | J124: 59.88 | K124: 686 (2004) | L124: 1.44
D125: хлеб бел. | E125: Хлеб пшеничный витаминизированный | F125: 35 | G125: 2.61 | H125: 0.27 | I125: 17.77 | J125: 84.11 | K125: пром | L125: 1.44
D126: хлеб черн. | E126: Хлеб ржаной | F126: 20 | G126: 1.29 | H126: 0.24 | I126: 8.17 | J126: 37.9 | K126: пром | L126: 34.8
E127: Йогурт | F127: 125 | G127: 4,99 | H127: 1.71 | I127: 6.95 | J127: 65.98 | K127: пром
L129: =L122+L123+L124+L125+L126 -> 108.64
D130: итого | G130: 24,36 | H130: 22.67 | I130: 86.71 | J130: 646.41
A131: =A122 -> 2 | B131: 7 | C131: Обед
D132: 1 блюдо | E132: Суп картофельный с макаронными изделиями на бульоне с курой | F132: 250 | G132: 6,74 | H132: 3.05 | I132: 15.61 | J132: 130.98 | K132: 139(2004) | L132: 25
D133: 2 блюдо | E133: Свинина тушення | F133: 75/70 | G133: 15,12 | H133: 15.95 | I133: 5.29 | J133: 180.19 | K133: 390 (1996) | L133: 86.07
D134: гарнир | E134: Каша гречневая вязкая (гарнир) | F134: 150 | G134: 2,52 | H134: 5.42 | I134: 35.31 | J134: 187.92 | K134: 464 (1996) | L134: 13.59
D135: напиток | E135: Напиток из брусники | F135: 200 | G135: 0,7 | H135: 2.51 | I135: 29.25 | J135: 133.66 | K135: ТТК | L135: 22.81
D136: хлеб бел. | E136: Хлеб пшеничный витаминизированный | F136: 30 | G136: 2,23 | H136: 0.24 | I136: 15.23 | J136: 72.09 | K136: пром | L136: 1.44
D137: хлеб черн. | E137: Хлеб ржаной | F137: 20 | G137: 1.29 | H137: 0.24 | I137: 8.17 | J137: 37.9 | K137: пром | L137: 1.44
E138: Фрукты свежие (Яблоко) | F138: 100 | G138: 0,38 | H138: 0.35 | I138: 10.56 | J138: 44.45 | L138: 12.6
D140: итого | G140: 29,98 | H140: 27.76 | I140: 119.42 | J140: 787.2 | L140: =L132+L133+L134+L135+L136+L137+L138 -> 162.95
A141: =A122 -> 2 | B141: =B122 -> 7 | C141: Итого за день: | F141: =F130+F140 -> 0 | G141: =G130+G140 -> 54.34 | H141: =H130+H140 -> 50.43 | I141: =I130+I140 -> 206.13 | J141: =J130+J140 -> 1433.61 | L141: =L129+L140 -> 271.59
A142: 2 | B142: 8 | C142: Завтрак | D142: Закуска | L142: 35.22
D143: гор.блюдо | E143: Запеканка (сырники) из творога со сгущенным молоком | F143: 60/50 | G143: 11,14 | H143: 7.41 | I143: 12.67 | J143: 162.29 | K143: 297 (1994) | L143: 45.15
D144: гарнир | E144: Каша «Дружба» со сливочным маслом | F144: 200/5 | G144: 7,13 | H144: 7.45 | I144: 44.27 | J144: 270.82 | K144: 35 (2003) | L144: 25.39
D145: напиток | E145: Какао с молоком | F145: 200 | G145: 3,94 | H145: 3.16 | I145: 21.39 | J145: 123.86 | K145: 642 (1996) | L145: 1.44
D146: хлеб бел. | E146: Хлеб пшеничный витаминизированный | F146: 30 | G146: 2,23 | H146: 0.24 | I146: 15.23 | J146: 72.09 | K146: пром | L146: 1.44
D147: хлеб черн. | E147: Хлеб ржаной | F147: 20 | G147: 1,29 | H147: 0.24 | I147: 8.17 | J147: 37.9 | K147: пром
L150: =L142+L143+L144+L145+L146 -> 108.64
D151: итого | G151: 25,73 | H151: 18.5 | I151: 101.73 | J151: 666.96
A152: =A142 -> 2 | B152: =B142 -> 8 | C152: Обед | E152: Овощи свежие (в нарезке) | F152: 60 | G152: 0,56 | H152: 0.09 | I152: 2.56 | J152: 12.31 | K152: 572 (2004) | L152: 26.22
D153: 1 блюдо | E153: Суп пюре из разных овощей с цветной капустой, гренками | F153: 250/10 | G153: 4,27 | H153: 5.5 | I153: 24.4 | J153: 162.14 | K153: 167 (1996) | L153: 30.69
D154: 2 блюдо | E154: Индейка тушенная | F154: 100,0 | G154: 14349 | H154: 10.93 | I154: 6.37 | J154: 180.14 | K154: ТТК | L154: 79.06
D155: гарнир | E155: Рис по турецки с вермишелью | F155: 150 | G155: 4,05 | H155: 4.95 | I155: 38.68 | J155: 216.81 | K155: ТТК | L155: 13.98
D156: напиток | E156: Компот из кураги | F156: 200 | G156: 1,02 | H156: 0.06 | I156: 28.19 | J156: 106.45 | K156: 588 (1996) | L156: 9.4
D157: хлеб бел. | E157: Хлеб пшеничный витаминизированный | F157: 30 | G157: 2.23 | H157: 0.24 | I157: 15.23 | J157: 72.09 | K157: пром | L157: 2.16
D158: хлеб черн. | E158: Хлеб ржаной | F158: 20 | G158: 1.29 | H158: 0.24 | I158: 8.17 | J158: 37.9 | K158: пром | L158: 1.44
D160: итого | G160: 29,28 | H160: 21.85 | I160: 119.55 | J160: 787.94 | L160: =L152+L153+L154+L155+L156+L157+L158 -> 162.95
A161: =A142 -> 2 | B161: =B142 -> 8 | C161: Итого за день: | F161: =F151+F160 -> 0 | G161: =G151+G160 -> 55.01 | H161: =H151+H160 -> 40.35 | I161: =I151+I160 -> 221.28 | J161: =J151+J160 -> 1454.9 | L161: =L150+L160 -> 271.59
A162: 2 | B162: 9 | C162: Завтрак | D162: салат | E162: Огурчик пикантный | F162: 150 | G162: 0,12 | H162: 1.48 | I162: 0.52 | J162: 15.55 | K162: ТТК | L162: 7.56
D163: гор.блюдо | E163: Ежики с рисом (говядина, свинина) | F163: 90 | G163: 12,44 | H163: 10.68 | I163: 12.94 | J163: 196.44 | K163: 562 (2014) | L163: 68.65
D164: гарнир | E164: Пюре картофельное (гарнир) | F164: 150 | G164: 3021 | H164: 5.33 | I164: 23.4 | J164: 153.04 | K164: 472 (1996) | L164: 26.52
D165: гор.напиток | E165: Чай с сахаром | F165: 200/15 | G165: 0,20 | H165: 0.05 | I165: 14.82 | J165: 57.35 | K165: 685 2004) | L165: 3.03
D166: хлеб бел. | E166: Хлеб пшеничный витаминизированный | F166: 20 | G166: 1,48 | H166: 0.16 | I166: 11.42 | J166: 54.06 | K166: пром | L166: 1.44
D167: хлеб черн. | E167: Хлеб ржаной | F167: 20 | G167: 1,29 | H167: 0.24 | I167: 8.17 | J167: 37.9 | K167: пром | L167: 1.44
D171: итого | G171: 18,74 | H171: 17.94 | I171: 71.27 | J171: 514.34 | L171: =L162+L163+L164+L165+L166+L167 -> 108.64
A172: =A162 -> 2 | B172: =B162 -> 9 | C172: Обед
D173: 1 блюдо | E173: Борщ с морской капустой, картофелем, сметаной | F173: 250/10 | G173: 1,97 | H173: 7.09 | I173: 14.26 | J173: 123.96 | K173: ФБУН ЕМНЦ ПОЗРПП Роспотребнадзор по Свердловской области 2018 год | L173: 19.67
D174: 2 блюдо | E174: Ежики с рисом (говядина, свинина) | F174: 90 | G174: 12,44 | H174: 10.68 | I174: 12.94 | J174: 196.44 | K174: 562 (2014) | L174: 76.27
D175: гарнир | E175: Пюре картофельное (гарнир) | F175: 150 | G175: 3,21 | H175: 5.33 | I175: 23.4 | J175: 153.04 | K175: 472 (1996) | L175: 35.08
D176: напиток | E176: Напиток вишневый | F176: 200 | G176: 0,47 | H176: 2.61 | I176: 17.29 | J176: 88.24 | K176: ТТК | L176: 28.33
D177: хлеб бел. | E177: Хлеб пшеничный витаминизированный | F177: 30 | G177: 2.23 | H177: 0.24 | I177: 15.23 | J177: 72.09 | K177: пром | L177: 2.16
D178: хлеб черн. | E178: Хлеб ржаной | F178: 20 | G178: 1.29 | H178: 0.24 | I178: 8.17 | J178: 37.9 | K178: пром | L178: 1.44
D181: итого | G181: 22,87 | H181: 28.19 | I181: 102.1 | J181: 790.52 | L181: =L173+L174+L175+L176+L177+L178 -> 162.95
A182: =A162 -> 2 | B182: =B162 -> 9 | C182: Итого за день: | F182: =F171+F181 -> 0 | G182: =G171+G181 -> 41.61 | H182: =H171+H181 -> 46.13 | I182: =I171+I181 -> 173.37 | J182: =J171+J181 -> 1304.86 | L182: =L171+L181 -> 271.59
A183: 2 | B183: 10 | C183: Завтрак | D183: закуска
D184: гор.блюдо | E184: Омлет натуральный с маслом сливочным | F184: 150/5 | G184: 15,23 | H184: 20.01 | I184: 2.8 | J184: 251.71 | K184: 284(1996) | L184: 59.01
D185: напиток | E185: Чай с лимоном | F185: 200/15/7 | G185: 0,26 | H185: 0.06 | I185: 15.16 | J185: 59.88 | K185: 686(2004) | L185: 5.46
E186: Выпечка в ассортименте | F186: 50 | G186: 3,08 | H186: 1.52 | I186: 30.39 | J186: 144.66 | L186: 30
E187: Фрукты свежие (Яблоко) | F187: 100 | G187: 0,38 | H187: 0.35 | I187: 10.56 | J187: 44.45 | L187: 12.6
D188: хлеб бел. | E188: Хлеб пшеничный витаминизированный | F188: 20 | G188: 1,49 | H188: 0.16 | I188: 10.15 | J188: 48.06 | K188: пром | L188: 1.57
D191: итого | G191: 20,43 | H191: 22.09 | I191: 69.06 | J191: 548.78 | L191: =L184+L185+L186+L187+L188 -> 108.64
A192: =A183 -> 2 | B192: =B183 -> 10 | C192: Обед
D193: 1 блюдо | E193: Суп картофельный с горохом, гренками | F193: 250/10 | G193: 4,98 | H193: 4.8 | I193: 29.18 | J193: 184.2 | K193: 139(2004) | L193: 11.49
D194: 2 блюдо | E194: Бефстроганов из говядины | F194: 50/50 | G194: 10,8 | H194: 13.7 | I194: 6.24 | J194: 242.28 | K194: 423 (2004) | L194: 116.52
D195: гарнир | E195: Макаронные изделия отварные | F195: 150 | G195: 5,51 | H195: 4.89 | I195: 36.65 | J195: 212.18 | K195: 469 (1996) | L195: 20.09
D196: напиток | E196: Напиток фруктово-ягодный | F196: 200 | G196: 0,22 | H196: 0 | I196: 20.11 | J196: 96.32 | K196: ТТК | L196: 11.06
D197: хлеб бел. | E197: Хлеб пшеничный витаминизированный | F197: 30 | G197: 2.23 | H197: 0.24 | I197: 15.23 | J197: 72.09 | K197: пром | L197: 2.35
D198: хлеб черн. | E198: Хлеб ржаной | F198: 20 | G198: 1.29 | H198: 0.24 | I198: 8.17 | J198: 37.9 | K198: пром | L198: 1.44
D201: итого | G201: 25,03 | H201: 23.87 | I201: 115.58 | J201: 844.98 | L201: =L193+L194+L195+L196+L197+L198 -> 162.95
A202: =A183 -> 2 | B202: =B183 -> 10 | C202: Итого за день: | F202: =F191+F201 -> 0 | G202: =G191+G201 -> 45.46 | H202: =H191+H201 -> 45.96 | I202: =I191+I201 -> 184.64 | J202: =J191+J201 -> 1393.76 | L202: =L191+L201 -> 271.59
C203: Среднее значение за период: | F203: =(F24+F44+F64+F80+F101+F121+F141+F161+F182+F202)/(IF(F24=0, 0, 1)+IF(F44=0, 0, 1)+IF(F64=0, 0, 1)+IF(F80=0, 0, 1)+IF(F101=0, 0, 1)+IF(F121=0, 0, 1)+IF(F141=0, 0, 1)+IF(F161=0, 0, 1)+IF(F182=0, 0, 1)+IF(F202=0, 0, 1)) ->  | G203: =(G24+G44+G64+G80+G101+G121+G141+G161+G182+G202)/(IF(G24=0, 0, 1)+IF(G44=0, 0, 1)+IF(G64=0, 0, 1)+IF(G80=0, 0, 1)+IF(G101=0, 0, 1)+IF(G121=0, 0, 1)+IF(G141=0, 0, 1)+IF(G161=0, 0, 1)+IF(G182=0, 0, 1)+IF(G202=0, 0, 1)) -> 49.588 | H203: =(H24+H44+H64+H80+H101+H121+H141+H161+H182+H202)/(IF(H24=0, 0, 1)+IF(H44=0, 0, 1)+IF(H64=0, 0, 1)+IF(H80=0, 0, 1)+IF(H101=0, 0, 1)+IF(H121=0, 0, 1)+IF(H141=0, 0, 1)+IF(H161=0, 0, 1)+IF(H182=0, 0, 1)+IF(H202=0, 0, 1)) -> 45.087 | I203: =(I24+I44+I64+I80+I101+I121+I141+I161+I182+I202)/(IF(I24=0, 0, 1)+IF(I44=0, 0, 1)+IF(I64=0, 0, 1)+IF(I80=0, 0, 1)+IF(I101=0, 0, 1)+IF(I121=0, 0, 1)+IF(I141=0, 0, 1)+IF(I161=0, 0, 1)+IF(I182=0, 0, 1)+IF(I202=0, 0, 1)) -> 195.695 | J203: =(J24+J44+J64+J80+J101+J121+J141+J161+J182+J202)/(IF(J24=0, 0, 1)+IF(J44=0, 0, 1)+IF(J64=0, 0, 1)+IF(J80=0, 0, 1)+IF(J101=0, 0, 1)+IF(J121=0, 0, 1)+IF(J141=0, 0, 1)+IF(J161=0, 0, 1)+IF(J182=0, 0, 1)+IF(J202=0, 0, 1)) -> 1381.866
